[Event "*** Titled Tuesday 3|2 Blitz"]
[Site "Chess.com"]
[Date "2015.08.04"]
[Round "6"]
[White "stefanodinn"]
[Black "AnthonyWirig"]
[Result "0-1"]
[WhiteElo "2143"]
[BlackElo "2501"]
[TimeControl "180+2"]
[EndTime "12:46:58 PDT"]
[Termination "AnthonyWirig won by resignation"]

1. e4 {[%clk 0:02:55.2]} 1... c5 {[%clk 0:03:00.6]} 2. Nf3 {[%clk 0:02:56]} 2...
d6 {[%clk 0:03:02.1]} 3. d4 {[%clk 0:02:56.9]} 3... cxd4 {[%clk 0:03:04]} 4.
Nxd4 {[%clk 0:02:57.9]} 4... Nf6 {[%clk 0:03:05.9]} 5. f3 {[%clk 0:02:58.4]}
5... e5 {[%clk 0:03:06.2]} 6. Nb3 {[%clk 0:02:57.8]} 6... a5 {[%clk 0:03:06.9]}
7. Nc3 {[%clk 0:02:35.2]} 7... a4 {[%clk 0:03:06.7]} 8. Nd2 {[%clk 0:02:30.4]}
8... d5 {[%clk 0:02:57]} 9. Nxd5 {[%clk 0:02:23.4]} 9... Nxd5 {[%clk 0:02:57.7]}
10. exd5 {[%clk 0:02:24.2]} 10... a3 {[%clk 0:02:49.3]} 11. Bb5+ {[%clk
0:02:12.1]} 11... Bd7 {[%clk 0:02:41]} 12. Qe2 {[%clk 0:01:58.2]} 12... f6
{[%clk 0:02:06.3]} 13. Bxd7+ {[%clk 0:01:26.6]} 13... Nxd7 {[%clk 0:02:06.9]}
14. c4 {[%clk 0:01:24.8]} 14... axb2 {[%clk 0:01:58.2]} 15. Bxb2 {[%clk
0:01:25.6]} 15... Qa5 {[%clk 0:01:46.9]} 16. a3 {[%clk 0:00:55.3]} 16... Bc5
{[%clk 0:01:38]} 17. Qd3 {[%clk 0:00:39.4]} 17... O-O {[%clk 0:01:37.5]} 18. Bc3
{[%clk 0:00:39.9]} 18... Qa7 {[%clk 0:01:25.5]} 19. Ke2 {[%clk 0:00:37.5]} 19...
f5 {[%clk 0:01:22.1]} 20. Rhf1 {[%clk 0:00:26.3]} 20... Rae8 {[%clk 0:01:21.8]}
21. Qc2 {[%clk 0:00:21.7]} 21... Bd4 {[%clk 0:01:13.5]} 22. Nb3 {[%clk
0:00:18.3]} 22... Nc5 {[%clk 0:01:11]} 23. Nxc5 {[%clk 0:00:16.4]} 23... Bxc5
{[%clk 0:01:07.9]} 24. Qb3 {[%clk 0:00:14.2]} 24... b6 {[%clk 0:01:04.8]} 25. a4
{[%clk 0:00:14.3]} 25... e4 {[%clk 0:01:04.5]} 26. f4 {[%clk 0:00:15.2]} 26...
Qf7 {[%clk 0:01:03.4]} 27. Kd2 {[%clk 0:00:12.2]} 27... e3+ {[%clk 0:01:04.1]}
28. Kc2 {[%clk 0:00:11.3]} 28... e2 {[%clk 0:01:05.5]} 29. Rfe1 {[%clk
0:00:12.1]} 29... Re3 {[%clk 0:01:07]} 0-1

[Event "*** Titled Tuesday 3|2 Blitz"]
[Site "Chess.com"]
[Date "2015.08.04"]
[Round "6"]
[White "josiwales"]
[Black "rhungaski"]
[Result "0-1"]
[WhiteElo "2058"]
[BlackElo "2471"]
[TimeControl "180+2"]
[EndTime "12:47:16 PDT"]
[Termination "rhungaski won by resignation"]

1. e4 {[%clk 0:02:56.7]} 1... e5 {[%clk 0:03:00.3]} 2. Nf3 {[%clk 0:02:52.7]}
2... Nc6 {[%clk 0:03:01.2]} 3. Bb5 {[%clk 0:02:53.9]} 3... a6 {[%clk 0:03:02.3]}
4. Ba4 {[%clk 0:02:53.7]} 4... Nf6 {[%clk 0:03:03.2]} 5. O-O {[%clk 0:02:53.5]}
5... Be7 {[%clk 0:03:04]} 6. Re1 {[%clk 0:02:53]} 6... b5 {[%clk 0:03:04.8]} 7.
Bb3 {[%clk 0:02:53.3]} 7... d6 {[%clk 0:03:06.3]} 8. c3 {[%clk 0:02:52.2]} 8...
O-O {[%clk 0:03:07.3]} 9. h3 {[%clk 0:02:52.9]} 9... Na5 {[%clk 0:03:08.4]} 10.
Bc2 {[%clk 0:02:51.8]} 10... c5 {[%clk 0:03:09.9]} 11. d3 {[%clk 0:02:51.9]}
11... Nc6 {[%clk 0:03:05.3]} 12. Be3 {[%clk 0:02:52.9]} 12... Re8 {[%clk
0:03:05.2]} 13. Nbd2 {[%clk 0:02:53.2]} 13... Bf8 {[%clk 0:03:01.3]} 14. Nf1
{[%clk 0:02:53.8]} 14... h6 {[%clk 0:03:00.9]} 15. g4 {[%clk 0:02:52.2]} 15...
h5 {[%clk 0:02:56.9]} 16. g5 {[%clk 0:02:51.7]} 16... Nh7 {[%clk 0:02:57.7]} 17.
h4 {[%clk 0:02:51.7]} 17... g6 {[%clk 0:02:57.7]} 18. Ng3 {[%clk 0:02:48.9]}
18... Bg4 {[%clk 0:02:56.6]} 19. Kg2 {[%clk 0:02:47.5]} 19... f6 {[%clk
0:02:54.7]} 20. Qd2 {[%clk 0:02:43.6]} 20... Bxf3+ {[%clk 0:02:51.8]} 21. Kxf3
{[%clk 0:02:41.3]} 21... fxg5 {[%clk 0:02:53.7]} 22. Bxg5 {[%clk 0:02:39.4]}
22... Nxg5+ {[%clk 0:02:54.5]} 23. Qxg5 {[%clk 0:02:40.5]} 23... Qxg5 {[%clk
0:02:54.9]} 24. hxg5 {[%clk 0:02:41.6]} 24... Be7 {[%clk 0:02:55.9]} 25. Rg1
{[%clk 0:02:26.6]} 25... Rf8+ {[%clk 0:02:55.6]} 26. Ke2 {[%clk 0:02:25.5]}
26... Kg7 {[%clk 0:02:54.2]} 27. f3 {[%clk 0:02:17.8]} 27... Rf4 {[%clk
0:02:39.5]} 28. Nf1 {[%clk 0:02:16.3]} 28... Raf8 {[%clk 0:02:39.2]} 29. Nd2
{[%clk 0:02:16]} 29... Nd8 {[%clk 0:02:38.1]} 30. a4 {[%clk 0:02:10.8]} 30... b4
{[%clk 0:02:35.8]} 31. cxb4 {[%clk 0:02:08.1]} 31... cxb4 {[%clk 0:02:37.7]} 32.
Bb3 {[%clk 0:02:08.9]} 32... Nb7 {[%clk 0:02:36.2]} 33. Bd5 {[%clk 0:02:02.5]}
33... Nc5 {[%clk 0:02:36.6]} 34. Ke3 {[%clk 0:01:58.8]} 34... a5 {[%clk
0:02:36]} 35. b3 {[%clk 0:01:23.8]} 35... Bd8 {[%clk 0:02:36.1]} 36. Ke2 {[%clk
0:01:16.4]} 36... Rh4 {[%clk 0:02:22]} 37. Rg2 {[%clk 0:01:11.8]} 37... Rh3
{[%clk 0:02:17.9]} 38. Rf1 {[%clk 0:01:09.7]} 38... h4 {[%clk 0:02:08.8]} 39.
Rff2 {[%clk 0:01:04.9]} 39... Rg3 {[%clk 0:02:05]} 40. Nf1 {[%clk 0:00:52]}
40... Rxg2 {[%clk 0:01:40.2]} 41. Rxg2 {[%clk 0:00:51.7]} 41... h3 {[%clk
0:01:37.7]} 42. Rg3 {[%clk 0:00:51]} 42... Rh8 {[%clk 0:01:37.1]} 43. Nh2 {[%clk
0:00:51.2]} 43... Rh5 {[%clk 0:01:37.6]} 44. Ke3 {[%clk 0:00:47.1]} 44... Bxg5+
{[%clk 0:01:37.1]} 45. Ke2 {[%clk 0:00:46.5]} 45... Bf4 {[%clk 0:01:37.4]} 0-1

[Event "*** Titled Tuesday 3|2 Blitz"]
[Site "Chess.com"]
[Date "2015.08.04"]
[Round "6"]
[White "CraiggoryC"]
[Black "silverback96"]
[Result "1-0"]
[WhiteElo "2011"]
[BlackElo "1873"]
[TimeControl "180+2"]
[EndTime "12:47:32 PDT"]
[Termination "CraiggoryC won by checkmate"]

1. e4 {[%clk 0:03:01.9]} 1... e6 {[%clk 0:02:43]} 2. d4 {[%clk 0:03:02.2]} 2...
d5 {[%clk 0:02:44.1]} 3. Nd2 {[%clk 0:03:03.7]} 3... Nf6 {[%clk 0:02:44.8]} 4.
e5 {[%clk 0:03:04.7]} 4... Nfd7 {[%clk 0:02:44.8]} 5. Bd3 {[%clk 0:03:06.2]}
5... c5 {[%clk 0:02:45.8]} 6. c3 {[%clk 0:03:07.8]} 6... Nc6 {[%clk 0:02:47.4]}
7. Ngf3 {[%clk 0:03:09.3]} 7... cxd4 {[%clk 0:02:48.8]} 8. cxd4 {[%clk
0:03:10.8]} 8... Be7 {[%clk 0:02:49.1]} 9. O-O {[%clk 0:03:08.8]} 9... g5 {[%clk
0:02:46.5]} 10. Nb3 {[%clk 0:03:06.2]} 10... g4 {[%clk 0:02:46.3]} 11. Nfd2
{[%clk 0:03:04.5]} 11... h5 {[%clk 0:02:47.7]} 12. f4 {[%clk 0:03:00.8]} 12...
gxf3 {[%clk 0:02:46.2]} 13. Qxf3 {[%clk 0:02:56.5]} 13... Rf8 {[%clk 0:02:43.5]}
14. Qxh5 {[%clk 0:02:53.6]} 14... a5 {[%clk 0:02:30.9]} 15. Rxf7 {[%clk
0:02:40.1]} 15... Rxf7 {[%clk 0:02:31]} 16. Bg6 {[%clk 0:02:41.2]} 16... Nf8
{[%clk 0:02:31.9]} 17. Bxf7+ {[%clk 0:02:38.3]} 17... Kd7 {[%clk 0:02:33.1]} 18.
Nf3 {[%clk 0:02:27.2]} 18... a4 {[%clk 0:02:21.2]} 19. Nc5+ {[%clk 0:02:25.5]}
19... Bxc5 {[%clk 0:02:16.6]} 20. dxc5 {[%clk 0:02:26.5]} 20... Qa5 {[%clk
0:02:14.6]} 21. Be8+ {[%clk 0:01:29]} 21... Kc7 {[%clk 0:02:09.1]} 22. Qf7+
{[%clk 0:01:21]} 22... Nd7 {[%clk 0:02:08.5]} 23. Qxe6 {[%clk 0:01:14.6]} 23...
Qxc5+ {[%clk 0:01:54.5]} 24. Kh1 {[%clk 0:01:13.5]} 24... Ndxe5 {[%clk
0:01:47.1]} 25. Qf6 {[%clk 0:01:07.6]} 25... Nxf3 {[%clk 0:01:45.1]} 26. Bf4+
{[%clk 0:01:06.9]} 26... Kb6 {[%clk 0:01:45]} 27. Rc1 {[%clk 0:00:57.1]} 27...
Qf2 {[%clk 0:01:25.2]} 28. Bxc6 {[%clk 0:00:24.9]} 28... bxc6 {[%clk 0:01:25.7]}
29. Qxc6+ {[%clk 0:00:15.3]} 29... Ka7 {[%clk 0:01:26.8]} 30. Qxa4+ {[%clk
0:00:11]} 30... Kb7 {[%clk 0:01:24.7]} 31. Rc7+ {[%clk 0:00:11.4]} 31... Kb6
{[%clk 0:01:25.1]} 32. Rc6+ {[%clk 0:00:10.9]} 32... Kb7 {[%clk 0:01:25.9]} 33.
Qb5+ {[%clk 0:00:09.9]} 33... Ka7 {[%clk 0:01:26.1]} 34. Qa5+ {[%clk 0:00:08.3]}
34... Kb7 {[%clk 0:01:27.3]} 35. Qc7# {[%clk 0:00:08.4]} 1-0

[Event "*** Titled Tuesday 3|2 Blitz"]
[Site "Chess.com"]
[Date "2015.08.04"]
[Round "6"]
[White "Gergo85"]
[Black "Haykos"]
[Result "1-0"]
[WhiteElo "2325"]
[BlackElo "2178"]
[TimeControl "180+2"]
[EndTime "12:47:35 PDT"]
[Termination "Gergo85 won by resignation"]

1. Nc3 {[%clk 0:02:59.3]} 1... e5 {[%clk 0:03:00.4]} 2. e4 {[%clk 0:02:59.2]}
2... Nc6 {[%clk 0:02:58.2]} 3. f4 {[%clk 0:02:58.4]} 3... d6 {[%clk 0:02:57.8]}
4. Nf3 {[%clk 0:02:57.9]} 4... exf4 {[%clk 0:02:57.2]} 5. Bb5 {[%clk 0:02:58.2]}
5... Ne7 {[%clk 0:02:57.9]} 6. O-O {[%clk 0:02:59]} 6... a6 {[%clk 0:02:58.3]}
7. Bc4 {[%clk 0:02:56.8]} 7... Ng6 {[%clk 0:02:57.6]} 8. d4 {[%clk 0:02:57.8]}
8... Be7 {[%clk 0:02:53.9]} 9. Nd5 {[%clk 0:02:58.7]} 9... b5 {[%clk 0:02:47]}
10. Bb3 {[%clk 0:02:53.8]} 10... O-O {[%clk 0:02:45.6]} 11. Nxf4 {[%clk
0:02:55.2]} 11... Nxf4 {[%clk 0:02:38.5]} 12. Bxf4 {[%clk 0:02:57.1]} 12... Na5
{[%clk 0:02:40.2]} 13. Qd3 {[%clk 0:02:48.1]} 13... Bb7 {[%clk 0:02:10.9]} 14.
Rae1 {[%clk 0:02:45.4]} 14... c5 {[%clk 0:02:10.5]} 15. Bd5 {[%clk 0:02:40.9]}
15... Bxd5 {[%clk 0:02:01.5]} 16. exd5 {[%clk 0:02:42.8]} 16... Re8 {[%clk
0:01:52.4]} 17. dxc5 {[%clk 0:02:42]} 17... dxc5 {[%clk 0:01:53.4]} 18. d6
{[%clk 0:02:24.5]} 18... Bf6 {[%clk 0:01:47.7]} 19. Qd5 {[%clk 0:02:23.9]} 19...
Qd7 {[%clk 0:01:04.7]} 20. Be5 {[%clk 0:02:24.7]} 20... Bxe5 {[%clk 0:00:51.9]}
21. Nxe5 {[%clk 0:02:24.9]} 21... Qe6 {[%clk 0:00:51.9]} 22. Qxc5 {[%clk
0:01:47.6]} 22... Nb7 {[%clk 0:00:50.8]} 23. Qc6 {[%clk 0:01:20.9]} 23... Nxd6
{[%clk 0:00:19.5]} 24. Nxf7 {[%clk 0:00:47.4]} 24... Qxe1 {[%clk 0:00:12.3]} 25.
Rxe1 {[%clk 0:00:43.3]} 25... Rxe1+ {[%clk 0:00:13.6]} 26. Kf2 {[%clk
0:00:44.6]} 26... Rae8 {[%clk 0:00:13.8]} 27. Nxd6 {[%clk 0:00:35.4]} 27...
R1e2+ {[%clk 0:00:14.9]} 28. Kf3 {[%clk 0:00:36.9]} 28... R2e3+ {[%clk
0:00:15.8]} 29. Kf4 {[%clk 0:00:38.4]} 29... R3e6 {[%clk 0:00:15.3]} 30. Qd5
{[%clk 0:00:33.4]} 30... Re7 {[%clk 0:00:15.3]} 31. Nf5 {[%clk 0:00:32.8]} 1-0

[Event "*** Titled Tuesday 3|2 Blitz"]
[Site "Chess.com"]
[Date "2015.08.04"]
[Round "6"]
[White "Hafez_Bakr"]
[Black "Prolta"]
[Result "1-0"]
[WhiteElo "1777"]
[BlackElo "1698"]
[TimeControl "180+2"]
[EndTime "12:47:36 PDT"]
[Termination "Hafez_Bakr won on time"]

1. e4 {[%clk 0:02:55.3]} 1... e6 {[%clk 0:03:00.3]} 2. d4 {[%clk 0:02:55.4]}
2... d5 {[%clk 0:03:01.6]} 3. e5 {[%clk 0:02:56.2]} 3... c5 {[%clk 0:03:01.8]}
4. c3 {[%clk 0:02:56.8]} 4... Nc6 {[%clk 0:03:01.9]} 5. Nf3 {[%clk 0:02:57.3]}
5... a6 {[%clk 0:02:55.7]} 6. a3 {[%clk 0:02:58.2]} 6... Qb6 {[%clk 0:02:55.3]}
7. b4 {[%clk 0:02:57.2]} 7... cxd4 {[%clk 0:02:55]} 8. cxd4 {[%clk 0:02:57.8]}
8... Bd7 {[%clk 0:02:56.4]} 9. Be2 {[%clk 0:02:58.1]} 9... Nge7 {[%clk
0:02:52.9]} 10. O-O {[%clk 0:02:58.6]} 10... Nf5 {[%clk 0:02:54.2]} 11. Bb2
{[%clk 0:03:00]} 11... g6 {[%clk 0:02:54.2]} 12. Qd3 {[%clk 0:02:59.4]} 12...
Bg7 {[%clk 0:02:53.7]} 13. Nbd2 {[%clk 0:03:00.1]} 13... O-O {[%clk 0:02:52.4]}
14. Nb3 {[%clk 0:03:00.6]} 14... Rfc8 {[%clk 0:02:48.9]} 15. Nc5 {[%clk
0:03:01.3]} 15... Qc7 {[%clk 0:02:49.6]} 16. Rfc1 {[%clk 0:02:59.4]} 16... Be8
{[%clk 0:02:28]} 17. Rc2 {[%clk 0:02:55.1]} 17... Qe7 {[%clk 0:02:26.9]} 18.
Rac1 {[%clk 0:02:53.3]} 18... Rc7 {[%clk 0:02:20.1]} 19. Qd2 {[%clk 0:02:50.2]}
19... Rac8 {[%clk 0:02:19.8]} 20. Na4 {[%clk 0:02:43.4]} 20... Bh6 {[%clk
0:02:18.8]} 21. Qd3 {[%clk 0:02:34.8]} 21... Bxc1 {[%clk 0:02:19.6]} 22. Rxc1
{[%clk 0:02:33.5]} 22... Nd8 {[%clk 0:02:08.8]} 23. Rxc7 {[%clk 0:02:33.4]}
23... Qxc7 {[%clk 0:02:04.5]} 24. Bd1 {[%clk 0:02:28.7]} 24... b5 {[%clk
0:01:53.7]} 25. Nc5 {[%clk 0:02:28.5]} 25... Qb6 {[%clk 0:01:38.9]} 26. Bc1
{[%clk 0:02:27.2]} 26... Nb7 {[%clk 0:01:36]} 27. g4 {[%clk 0:02:28]} 27... Ng7
{[%clk 0:01:30.3]} 28. Ng5 {[%clk 0:02:28.2]} 28... Nxc5 {[%clk 0:01:22.2]} 29.
dxc5 {[%clk 0:02:26.2]} 29... Qd8 {[%clk 0:01:13.8]} 30. Qh3 {[%clk 0:02:24.4]}
30... h5 {[%clk 0:00:36.6]} 31. gxh5 {[%clk 0:02:22.1]} 31... Nxh5 {[%clk
0:00:36.5]} 32. Bxh5 {[%clk 0:02:22.8]} 32... gxh5 {[%clk 0:00:38.4]} 33. Qxh5
{[%clk 0:02:23]} 33... Qc7 {[%clk 0:00:21.5]} 34. Qh7+ {[%clk 0:02:16]} 34...
Kf8 {[%clk 0:00:22.8]} 35. Bf4 {[%clk 0:02:06.4]} 35... Ke7 {[%clk 0:00:21]} 36.
Qh8 {[%clk 0:02:03.6]} 36... Bd7 {[%clk 0:00:19.9]} 37. Qf6+ {[%clk 0:02:03.6]}
37... Ke8 {[%clk 0:00:19.6]} 38. Qxf7+ {[%clk 0:02:03.4]} 38... Kd8 {[%clk
0:00:19.7]} 39. Qf8+ {[%clk 0:02:04.2]} 39... Be8 {[%clk 0:00:19.4]} 40. Nxe6+
{[%clk 0:02:04.3]} 1-0

[Event "*** Titled Tuesday 3|2 Blitz"]
[Site "Chess.com"]
[Date "2015.08.04"]
[Round "6"]
[White "eugeniusjr"]
[Black "mortalbovine"]
[Result "0-1"]
[WhiteElo "1939"]
[BlackElo "1791"]
[TimeControl "180+2"]
[EndTime "12:47:45 PDT"]
[Termination "mortalbovine won by resignation"]

1. c4 {[%clk 0:02:45]} 1... c5 {[%clk 0:02:58.6]} 2. g3 {[%clk 0:02:43.8]} 2...
g6 {[%clk 0:02:49.2]} 3. Bg2 {[%clk 0:02:44.9]} 3... Bg7 {[%clk 0:02:47.7]} 4.
Nc3 {[%clk 0:02:45.8]} 4... Nc6 {[%clk 0:02:45.4]} 5. Nf3 {[%clk 0:02:47]} 5...
Nf6 {[%clk 0:02:38.3]} 6. d4 {[%clk 0:02:47.6]} 6... cxd4 {[%clk 0:02:33.8]} 7.
Nxd4 {[%clk 0:02:49.5]} 7... O-O {[%clk 0:02:31.3]} 8. c5 {[%clk 0:02:45.4]}
8... Nd5 {[%clk 0:02:06.5]} 9. Nxc6 {[%clk 0:02:26.4]} 9... Nxc3 {[%clk
0:01:48.4]} 10. Nxd8 {[%clk 0:02:09.1]} 10... Nxd1 {[%clk 0:01:49]} 11. Nxb7
{[%clk 0:02:06.3]} 11... Bxb7 {[%clk 0:01:44.9]} 12. Bxb7 {[%clk 0:02:04.7]}
12... Rab8 {[%clk 0:01:46.2]} 13. Kxd1 {[%clk 0:01:50.5]} 13... Rxb7 {[%clk
0:01:47]} 14. c6 {[%clk 0:01:12.9]} 14... dxc6 {[%clk 0:01:44.9]} 15. Kc2 {[%clk
0:01:10.2]} 15... Rfb8 {[%clk 0:01:41.5]} 16. Rb1 {[%clk 0:01:08.3]} 16... Rd7
{[%clk 0:01:40.1]} 17. Rd1 {[%clk 0:01:01.5]} 17... Rxd1 {[%clk 0:01:36.8]} 18.
Kxd1 {[%clk 0:01:03.4]} 18... f5 {[%clk 0:01:36.6]} 19. b3 {[%clk 0:00:56.5]}
19... Kf7 {[%clk 0:01:37]} 20. Kc2 {[%clk 0:00:55.6]} 20... Ke6 {[%clk
0:01:37.7]} 21. Be3 {[%clk 0:00:48.1]} 21... Rd8 {[%clk 0:01:29.1]} 22. a4
{[%clk 0:00:34.6]} 22... a6 {[%clk 0:01:27.2]} 23. Rd1 {[%clk 0:00:24.4]} 23...
Rxd1 {[%clk 0:01:27]} 24. Kxd1 {[%clk 0:00:26.3]} 24... Kd5 {[%clk 0:01:28.1]}
25. Kc2 {[%clk 0:00:25]} 25... Bd4 {[%clk 0:01:23.8]} 26. Kd3 {[%clk 0:00:11.1]}
26... Bxe3 {[%clk 0:01:16.8]} 27. Kxe3 {[%clk 0:00:13]} 27... Kc5 {[%clk
0:01:17.2]} 28. Kd3 {[%clk 0:00:14]} 28... Kb4 {[%clk 0:01:18.1]} 29. Kc2 {[%clk
0:00:14.6]} 29... c5 {[%clk 0:01:16.6]} 30. h4 {[%clk 0:00:13.4]} 30... e5
{[%clk 0:01:13.3]} 31. f3 {[%clk 0:00:13.1]} 31... a5 {[%clk 0:01:13.3]} 32. Kb2
{[%clk 0:00:10.2]} 32... c4 {[%clk 0:01:13.5]} 33. bxc4 {[%clk 0:00:10.5]} 33...
Kxc4 {[%clk 0:01:13.9]} 34. e3 {[%clk 0:00:06.4]} 34... Kb4 {[%clk 0:01:13.4]}
35. e4 {[%clk 0:00:06.2]} 35... Kxa4 {[%clk 0:01:03.6]} 36. h5 {[%clk
0:00:06.2]} 36... Kb4 {[%clk 0:00:59]} 37. g4 {[%clk 0:00:04.4]} 37... fxe4
{[%clk 0:00:55.3]} 38. fxe4 {[%clk 0:00:03.4]} 38... Kc4 {[%clk 0:00:54.3]} 0-1

[Event "*** Titled Tuesday 3|2 Blitz"]
[Site "Chess.com"]
[Date "2015.08.04"]
[Round "6"]
[White "NMJeevanK"]
[Black "Lying-Ted"]
[Result "1-0"]
[WhiteElo "2079"]
[BlackElo "2008"]
[TimeControl "180+2"]
[EndTime "12:47:50 PDT"]
[Termination "NMJeevanK won by resignation"]

1. e4 {[%clk 0:03:01.9]} 1... Nf6 {[%clk 0:02:59.5]} 2. e5 {[%clk 0:03:02.4]}
2... Nd5 {[%clk 0:02:59.4]} 3. d4 {[%clk 0:03:04.3]} 3... d6 {[%clk 0:03:00.1]}
4. c4 {[%clk 0:03:05.2]} 4... Nb6 {[%clk 0:03:01.4]} 5. exd6 {[%clk 0:03:07.1]}
5... cxd6 {[%clk 0:03:02.7]} 6. Nc3 {[%clk 0:03:08.4]} 6... g6 {[%clk
0:03:04.2]} 7. Nf3 {[%clk 0:03:09.8]} 7... Bg7 {[%clk 0:03:05.6]} 8. Be3 {[%clk
0:03:11.4]} 8... O-O {[%clk 0:03:06.2]} 9. Rc1 {[%clk 0:03:12.6]} 9... Bg4
{[%clk 0:03:05.9]} 10. b3 {[%clk 0:03:12.7]} 10... Nc6 {[%clk 0:03:07.1]} 11.
Be2 {[%clk 0:03:12.9]} 11... d5 {[%clk 0:03:07.4]} 12. c5 {[%clk 0:03:11.9]}
12... Nc8 {[%clk 0:03:08.5]} 13. h3 {[%clk 0:03:12.4]} 13... Bxf3 {[%clk
0:03:08.7]} 14. Bxf3 {[%clk 0:03:13.1]} 14... e6 {[%clk 0:03:10.6]} 15. O-O
{[%clk 0:03:12.9]} 15... N8e7 {[%clk 0:03:10.2]} 16. a3 {[%clk 0:03:11.2]} 16...
Nf5 {[%clk 0:03:10.1]} 17. b4 {[%clk 0:03:10.8]} 17... Ncxd4 {[%clk 0:03:07.4]}
18. Bg4 {[%clk 0:03:07.7]} 18... Nxe3 {[%clk 0:03:06.4]} 19. fxe3 {[%clk
0:03:07.5]} 19... Nc6 {[%clk 0:03:04.8]} 20. Nb5 {[%clk 0:03:06.2]} 20... a5
{[%clk 0:03:02.1]} 21. Qd2 {[%clk 0:02:57.7]} 21... axb4 {[%clk 0:03:01.6]} 22.
axb4 {[%clk 0:02:59.6]} 22... Ra4 {[%clk 0:02:47]} 23. Nd6 {[%clk 0:02:50.5]}
23... Rxb4 {[%clk 0:02:44.8]} 24. Rb1 {[%clk 0:02:48.2]} 24... Qa5 {[%clk
0:02:13.3]} 25. Rxb4 {[%clk 0:02:09.4]} 25... Qxc5 {[%clk 0:02:12.3]} 26. Rxb7
{[%clk 0:01:41.9]} 26... Qxd6 {[%clk 0:02:12.4]} 27. Qf2 {[%clk 0:01:37.6]}
27... Ne5 {[%clk 0:02:11.4]} 28. Be2 {[%clk 0:01:36.8]} 28... Bh6 {[%clk
0:02:04]} 29. Rfb1 {[%clk 0:01:32.4]} 29... Qc5 {[%clk 0:02:01.3]} 30. R1b3
{[%clk 0:01:22.3]} 30... Qd6 {[%clk 0:01:31.4]} 31. g4 {[%clk 0:01:21.3]} 31...
Nc4 {[%clk 0:01:18.3]} 32. h4 {[%clk 0:01:15.7]} 32... Ne5 {[%clk 0:00:39.4]}
33. g5 {[%clk 0:01:12.1]} 33... Bg7 {[%clk 0:00:40.5]} 34. h5 {[%clk 0:01:10.1]}
34... Qc5 {[%clk 0:00:27.5]} 35. h6 {[%clk 0:01:00.2]} 35... Bh8 {[%clk
0:00:28.3]} 36. Rb8 {[%clk 0:01:00]} 36... Nd7 {[%clk 0:00:21.4]} 37. Rxf8+
{[%clk 0:00:44.1]} 37... Nxf8 {[%clk 0:00:22.4]} 38. Rb7 {[%clk 0:00:44.9]}
38... f5 {[%clk 0:00:20.7]} 39. gxf6 {[%clk 0:00:45.9]} 1-0

[Event "*** Titled Tuesday 3|2 Blitz"]
[Site "Chess.com"]
[Date "2015.08.04"]
[Round "6"]
[White "lexiel"]
[Black "talaicito"]
[Result "1-0"]
[WhiteElo "2297"]
[BlackElo "2058"]
[TimeControl "180+2"]
[EndTime "12:48:03 PDT"]
[Termination "lexiel won by resignation"]

1. d4 {[%clk 0:03:01.8]} 1... e6 {[%clk 0:02:59.3]} 2. Nc3 {[%clk 0:02:58.6]}
2... f5 {[%clk 0:03:00.2]} 3. e4 {[%clk 0:02:57]} 3... fxe4 {[%clk 0:02:50.8]}
4. Nxe4 {[%clk 0:02:37.3]} 4... Nf6 {[%clk 0:02:52.1]} 5. Bd3 {[%clk 0:02:36]}
5... Nc6 {[%clk 0:02:41.2]} 6. Ne2 {[%clk 0:02:32.4]} 6... Nb4 {[%clk
0:02:37.7]} 7. Nxf6+ {[%clk 0:02:24]} 7... Qxf6 {[%clk 0:02:35.3]} 8. Bc4 {[%clk
0:02:18]} 8... Qg6 {[%clk 0:02:18.9]} 9. O-O {[%clk 0:02:12.9]} 9... Qxc2 {[%clk
0:02:06.2]} 10. Qxc2 {[%clk 0:02:11.1]} 10... Nxc2 {[%clk 0:02:06.5]} 11. Rb1
{[%clk 0:02:11.5]} 11... Nb4 {[%clk 0:01:58.6]} 12. a3 {[%clk 0:02:09.1]} 12...
Nc6 {[%clk 0:01:58.6]} 13. d5 {[%clk 0:02:08.4]} 13... Ne5 {[%clk 0:01:52.4]}
14. Ba2 {[%clk 0:02:08.8]} 14... exd5 {[%clk 0:01:45.1]} 15. Nc3 {[%clk
0:02:00.1]} 15... Bd6 {[%clk 0:00:49.4]} 16. Nb5 {[%clk 0:01:46.6]} 16... O-O
{[%clk 0:00:41.7]} 17. Nxd6 {[%clk 0:01:34.9]} 17... cxd6 {[%clk 0:00:42.7]} 18.
Bxd5+ {[%clk 0:01:29.6]} 18... Kh8 {[%clk 0:00:43.5]} 19. Bg5 {[%clk 0:01:24.3]}
19... Ng6 {[%clk 0:00:15.6]} 20. Rfe1 {[%clk 0:01:23.4]} 20... a5 {[%clk
0:00:11]} 21. Be7 {[%clk 0:01:14.7]} 21... Nxe7 {[%clk 0:00:11.2]} 22. Rxe7
{[%clk 0:01:16.6]} 22... Ra6 {[%clk 0:00:09.4]} 23. Rbe1 {[%clk 0:01:16.7]}
23... h6 {[%clk 0:00:02.4]} 24. Re8 {[%clk 0:01:14.4]} 24... Rxe8 {[%clk
0:00:03]} 25. Rxe8+ {[%clk 0:01:16.3]} 25... Kh7 {[%clk 0:00:04.2]} 26. Rxc8
{[%clk 0:01:16]} 26... b5 {[%clk 0:00:05.3]} 27. h4 {[%clk 0:01:15.2]} 27... h5
{[%clk 0:00:04.9]} 28. g4 {[%clk 0:01:04.1]} 28... hxg4 {[%clk 0:00:04.8]} 29.
Be4+ {[%clk 0:01:04.5]} 29... g6 {[%clk 0:00:04.6]} 30. h5 {[%clk 0:01:05.7]}
30... b4 {[%clk 0:00:03.5]} 31. Rc7 {[%clk 0:00:58.5]} 31... bxa3 {[%clk
0:00:03.8]} 32. bxa3 {[%clk 0:00:58.1]} 32... Kh6 {[%clk 0:00:04]} 33. hxg6
{[%clk 0:00:54.4]} 33... Rb6 {[%clk 0:00:05]} 34. Rxd7 {[%clk 0:00:54.8]} 34...
Rb3 {[%clk 0:00:05.3]} 35. g7 {[%clk 0:00:52.6]} 35... Rb8 {[%clk 0:00:04.9]}
36. Bd5 {[%clk 0:00:53.4]} 36... g3 {[%clk 0:00:02.7]} 37. g8=Q {[%clk
0:00:53.2]} 37... gxf2+ {[%clk 0:00:03.4]} 38. Kxf2 {[%clk 0:00:53.3]} 38...
Rxg8 {[%clk 0:00:04.2]} 39. Bxg8 {[%clk 0:00:53.5]} 1-0